bitfinex/quotes_ETHUSD_20240925
["timestamp","ask_amount","ask_price","bid_price","bid_amount"]
[1727244476156,4.56726,2628.2,2627.7,3.80557]
[1727244476367,0.03474461,2627.8,2627.7,3.80557]
[1727244476666,4.56726,2628.2,2627.7,5.02527757]
[1727244476837,0.03474461,2627.8,2627.7,3.80557]
[1727244477042,4.56726,2628.2,2627.7,3.80557]
[1727244477526,0.03509881,2628.1,2627.7,3.80557]
[1727244477728,0.03509881,2628.1,2627.8,3.80543]
[1727244480144,0.03509881,2628.1,2627.7,3.80557]
[1727244480336,0.03509881,2628.1,2627.7,3.80549]
[1727244480561,0.03509881,2628.1,2627.7,4.42745148]
[1727244481337,0.03509881,2628.1,2627.8,3.80535]
[1727244482752,0.03509881,2628.1,2627.7,4.42745148]
[1727244482953,0.03509881,2628.1,2628.0,8.10837704]
[1727244483279,0.03509881,2628.1,2628.0,9.44007704]
[1727244483571,0.7623,2628.8,2628.4,3.80456]
[1727244484943,1.98176093,2629.0,2628.7,1.30320704]
[1727244485242,0.7927,2629.2,2628.7,1.30320704]
[1727244485465,0.7927,2629.2,2628.7,8.91135704]
[1727244485672,0.7927,2629.2,2628.9,1.30320704]
[1727244486386,0.7927,2629.2,2628.7,6.62512332]
[1727244486883,0.0346797,2629.1,2628.7,6.62512332]
[1727244488568,0.0346797,2629.1,2628.8,3.80394]
[1727244490360,0.0346797,2629.1,2629.0,6.80372]
[1727244490692,0.7927,2629.5,2629.1,3.80352]
[1727244493158,3.8028,2629.7,2629.1,7.607]
[1727244493385,4.5955,2629.7,2629.1,3.80348]
[1727244493597,4.5955,2629.7,2629.1,6.62453332]
[1727244493768,0.7927,2629.7,2629.3,3.80319]
[1727244494099,0.7927,2629.7,2629.3,7.60638]
[1727244494302,0.03616196,2629.6,2629.3,3.80319]
[1727244494474,0.03616196,2629.6,2629.3,4.56998567]
[1727244496191,3.83911196,2629.6,2629.2,3.0]
[1727244496394,3.83911196,2629.6,2629.1,3.80348]
[1727244496395,3.80315,2629.4,2629.0,3.0]
[1727244496701,0.82850818,2629.3,2629.0,3.0]
[1727244496901,4.63181818,2629.3,2628.7,7.60812]
[1727244497130,4.63181818,2629.3,2628.8,1.200667]
[1727244497275,4.63181818,2629.3,2628.7,3.80405]
[1727244497478,4.63181818,2629.3,2628.7,7.60812]
[1727244497781,3.80348,2629.2,2628.7,3.80405]
[1727244498301,0.03557227,2629.1,2628.7,3.80405]
[1727244498700,0.7927,2629.0,2628.6,3.80428]
[1727244499016,0.03533633,2628.9,2628.5,3.80435]
[1727244499307,0.03533633,2628.9,2628.3,14.01569332]
[1727244499308,4.30246296,2628.9,2628.3,11.1946]
[1727244499518,0.7753,2628.8,2628.3,7.39]
[1727244499662,0.7753,2628.8,2628.3,11.19464]
[1727244500008,0.03510036,2628.7,2628.3,11.19464]
[1727244500309,4.57935,2628.8,2628.3,11.19464]
[1727244500310,0.7753,2628.8,2628.3,11.19464]
[1727244500667,0.03510036,2628.7,2628.3,14.99929]
[1727244500896,0.7753,2628.8,2628.5,3.8044]
[1727244501097,0.03510036,2628.7,2628.5,3.8044]
[1727244501322,0.7753,2628.8,2628.5,3.8044]
[1727244501525,0.03510036,2628.7,2628.5,3.8044]
[1727244501734,0.7753,2628.8,2628.5,3.8044]
[1727244502034,0.03510036,2628.7,2628.5,3.8044]
[1727244502221,0.03510036,2628.7,2628.4,3.80449]
[1727244502422,0.7753,2628.8,2628.5,3.80444]
[1727244502793,0.03504618,2628.7,2628.5,3.80444]
[1727244503193,0.7753,2628.8,2628.4,5.51262043]
[1727244503424,0.7753,2628.8,2628.4,3.80449]
[1727244503622,0.0349987,2628.7,2628.4,7.60901]
[1727244503805,0.0349987,2628.7,2628.4,3.80449]
[1727244504011,0.7753,2628.8,2628.4,3.80449]
[1727244504204,0.0348807,2628.6,2628.4,3.80449]
[1727244504421,0.7753,2628.8,2628.4,3.80449]
[1727244504644,0.03476268,2628.5,2628.4,3.80449]
[1727244504916,0.03466597,2628.5,2628.4,7.989449]
[1727244505139,0.7753,2628.8,2628.4,4.184939]
[1727244505419,0.034902,2628.7,2628.4,7.60901]
[1727244505716,0.7753,2628.8,2628.4,3.80449]
[1727244506030,0.034902,2628.7,2628.4,7.609]
[1727244506235,0.034902,2628.7,2628.4,3.80449]
[1727244506537,0.03478399,2628.6,2628.4,3.80449]
[1727244506838,0.85083097,2628.8,2628.3,3.0]
[1727244507001,0.03466597,2628.5,2628.3,3.0]
[1727244507203,0.7753,2628.6,2628.3,3.0]
[1727244507397,0.03441251,2628.4,2628.3,3.0]
[1727244507912,0.7753,2628.6,2628.3,6.80474]
[1727244508109,0.03453053,2628.5,2628.3,6.80474]
[1727244509229,0.03453053,2628.5,2628.3,3.0]
[1727244511245,0.03453053,2628.5,2628.2,3.0]
[1727244511653,0.7753,2628.6,2628.2,3.80485]
[1727244511850,0.03380407,2628.4,2628.2,3.80485]
[1727244512042,0.7753,2628.6,2628.2,4.865844]
[1727244512246,0.03440173,2628.3,2628.2,7.865844]
[1727244512422,0.7753,2628.6,2628.2,4.865844]
[1727244512622,0.7753,2628.6,2628.2,3.80485]
[1727244512843,0.03464271,2628.5,2628.2,3.80485]
[1727244514728,0.03464271,2628.5,2628.3,3.80471]
[1727244514924,0.03464271,2628.5,2628.3,3.80473]
[1727244515561,0.03464271,2628.5,2628.2,3.80485]
[1727244515917,0.03464271,2628.5,2628.2,3.80481]
[1727244516353,0.03464271,2628.5,2628.2,7.60961]
[1727244516558,0.03464271,2628.5,2628.2,3.8048]
[1727244517832,3.80471,2628.4,2627.9,6.8053]
[1727244518037,0.7981,2628.4,2627.8,3.80537]
[1727244518224,0.03374233,2628.3,2627.8,3.80537]
[1727244518916,0.03374233,2628.3,2627.8,7.61074]
[1727244520050,0.03374233,2628.3,2627.8,3.80537]
[1727244520727,3.9140133,2628.3,2627.8,3.80537]
[1727244521434,3.9140133,2628.3,2627.8,7.61074]
[1727244521639,0.7981,2628.2,2627.8,3.80537]
[1727244521824,4.63724676,2628.2,2627.7,3.0]
[1727244522164,4.71277773,2628.2,2627.7,3.0]
[1727244522322,4.63724676,2628.2,2627.7,3.0]
[1727244523998,0.83234676,2628.2,2627.8,0.40760455]
[1727244524142,3.80503,2628.1,2627.6,6.80567]
[1727244524447,3.83891783,2628.1,2627.7,0.40765607]
[1727244524651,3.83891783,2628.1,2627.8,0.40765607]
[1727244524851,3.83891783,2628.1,2627.6,6.80567]
[1727244525065,3.83891783,2628.1,2627.7,0.40762437]
[1727244525262,3.83891783,2628.1,2627.8,0.40762437]
[1727244525434,3.83891783,2628.1,2627.6,6.80567]
[1727244526037,0.03388783,2628.1,2627.7,3.80558]
[1727244526970,0.03388783,2628.1,2627.8,3.80536]
[1727244527207,0.03388783,2628.1,2628.0,3.80517]
[1727244527341,0.03388783,2628.1,2628.0,6.62622332]
[1727244527543,0.7981,2628.6,2628.2,3.80477]
[1727244527754,0.03424667,2628.5,2628.2,7.60957]
[1727244527949,0.03424667,2628.5,2628.2,3.80477]
[1727244528390,0.03424667,2628.5,2628.2,7.60956]
[1727244528556,0.03424667,2628.5,2628.2,3.80477]
[1727244528748,0.03424667,2628.5,2628.3,3.80472]
[1727244529586,0.03424667,2628.5,2628.3,7.60938]
[1727244530076,0.7981,2628.6,2628.3,4.565598]
[1727244530280,0.7981,2628.6,2628.3,3.80466]
[1727244533658,0.7981,2628.6,2628.2,3.8048]
[1727244535765,0.7981,2628.6,2628.1,3.80492]
[1727244535965,0.8319,2628.1,2627.7,3.80553]
[1727244536285,4.71248097,2628.1,2627.5,7.61159]
[1727244536499,4.71248097,2628.1,2627.5,3.80578]
[1727244536680,0.8319,2627.7,2627.3,7.39]
[1727244536841,0.8319,2627.7,2627.2,3.80628]
[1727244537386,0.8319,2627.7,2627.3,3.80614]
[1727244538988,0.8319,2627.7,2627.2,3.0]
[1727244539197,0.07553097,2627.6,2627.2,3.0]
[1727244539512,0.07553097,2627.6,2627.1,4.61188]
[1727244539513,4.71307097,2627.7,2627.1,3.80638]
[1727244539808,4.71307097,2627.7,2626.9,8.26457714]
[1727244539809,1.75174297,2627.7,2626.9,8.26457714]
[1727244539979,0.8319,2627.4,2626.9,4.45907714]
[1727244540187,0.8319,2627.4,2626.9,3.80668]
[1727244540485,0.8319,2627.4,2627.0,3.80658]
[1727244540870,0.8319,2627.4,2626.9,7.61334]
[1727244541284,0.8319,2627.4,2626.9,3.80666]
[1727244541604,0.8319,2627.4,2626.8,3.0]
[1727244541605,5.4899511,2627.4,2626.8,3.0]
[1727244541908,5.4899511,2627.4,2626.7,7.61391]
[1727244541909,0.07553097,2627.3,2626.7,7.61388]
[1727244542273,5.4899511,2627.4,2626.8,3.8069]
[1727244542624,5.4899511,2627.4,2626.9,3.80674]
[1727244542767,4.63803,2627.4,2626.9,3.80674]
[1727244543224,4.63803,2627.4,2626.9,4.45920252]
[1727244544576,4.63803,2627.4,2626.9,3.80674]
[1727244546179,0.07553097,2627.3,2626.9,3.80674]
[1727244546810,0.07553097,2627.3,2626.8,3.80686]
[1727244547314,0.8319,2627.4,2626.9,3.80675]
[1727244547809,0.8319,2627.4,2626.9,3.80669]
[1727244548598,0.8319,2627.4,2626.9,7.61338]
[1727244548977,0.8319,2627.4,2626.9,3.80668]
[1727244549516,0.8319,2627.4,2626.9,7.61336]
[1727244550315,0.8319,2627.4,2627.0,3.8066]
[1727244550513,0.8319,2627.4,2627.1,3.8064]
[1727244551016,0.8319,2627.4,2627.2,3.8063]
[1727244552315,0.8319,2627.4,2627.2,7.61249]
[1727244552612,0.8256,2627.7,2627.3,3.80609]
[1727244552814,0.8256,2627.7,2627.4,3.80602]
[1727244552985,0.8256,2627.7,2627.3,3.80615]
[1727244553187,0.8256,2627.7,2627.2,3.80624]
[1727244554218,0.8256,2627.7,2627.2,3.80623]
[1727244554376,0.8256,2627.7,2627.2,7.61247]
[1727244554578,4.63127,2627.7,2627.2,3.80623]
[1727244554777,4.63127,2627.7,2627.2,7.61248]
[1727244554981,4.63127,2627.7,2627.2,3.80623]
[1727244555496,3.80575,2627.6,2627.2,3.80623]
[1727244555698,1.669274,2627.7,2627.2,3.80623]
[1727244556210,3.80587,2627.6,2627.1,3.0]
[1727244556416,3.80587,2627.6,2627.0,3.80653]
[1727244556417,4.63152,2627.5,2627.0,3.80653]
[1727244556615,0.8256,2627.5,2627.0,3.80653]
[1727244556820,0.8256,2627.5,2627.1,3.80644]
[1727244558523,0.8256,2627.5,2627.2,3.8063]
[1727244559022,0.8256,2627.5,2627.3,3.80618]
[1727244559182,0.7713,2627.7,2627.3,3.80618]
[1727244560324,4.57692,2627.7,2627.2,4.56565]
[1727244560487,4.57692,2627.7,2627.2,3.80625]
[1727244560823,0.7713,2627.7,2627.2,3.80625]
[1727244561023,4.57692,2627.7,2627.2,4.34731783]
[1727244562090,4.57692,2627.7,2627.2,8.15356783]
[1727244562689,4.57692,2627.7,2627.2,4.34731783]
[1727244563113,3.80579,2627.6,2627.1,3.80645]
[1727244565190,3.80579,2627.6,2627.1,3.0]
[1727244566518,3.80579,2627.6,2627.1,6.80646]
[1727244566701,3.80579,2627.6,2627.1,8.22580333]
[1727244567430,8.38263,2627.7,2627.1,8.22580333]
[1727244567755,0.7713,2627.4,2626.9,3.0]
[1727244567910,3.80633,2627.2,2626.8,3.0]
[1727244568231,0.7713,2627.1,2626.6,0.037853]
[1727244568433,4.57778,2627.1,2626.6,0.037853]
[1727244568633,8.38439,2627.1,2626.6,0.037853]
[1727244568807,3.80665,2627.0,2626.6,0.037853]
[1727244569199,4.57778,2627.1,2626.6,0.037853]
[1727244569438,3.80665,2627.0,2626.6,0.037853]
[1727244570430,0.7713,2626.9,2626.6,0.037853]
[1727244575117,3.80702,2626.8,2626.6,0.037853]
[1727244575322,0.7713,2626.9,2626.6,0.037853]
[1727244576134,3.80704,2626.8,2626.6,0.037853]
[1727244576374,0.457834,2626.7,2626.6,0.037853]
[1727244577167,4.264884,2626.7,2626.6,0.037853]
[1727244577973,5.09751497,2626.7,2626.6,0.037853]
[1727244579573,5.021984,2626.7,2626.6,0.037853]
[1727244580224,4.56415,2626.7,2626.6,0.037853]
[1727244580426,0.7571,2626.7,2626.6,0.037853]
[1727244582781,0.7571,2626.9,2626.6,0.037853]
[1727244582985,0.7571,2627.4,2626.9,3.80668]
[1727244583182,6.58035758,2627.6,2627.0,0.8169]
[1727244583183,4.56291,2627.6,2627.0,0.8169]
[1727244583531,3.80549,2627.8,2627.0,0.8169]
[1727244583532,3.80549,2627.8,2627.3,3.80611]
[1727244583533,4.56259,2627.8,2627.3,3.80611]
[1727244584036,4.56259,2627.8,2627.1,3.80646]
[1727244584037,3.80572,2627.7,2627.1,3.80646]
[1727244584942,4.56259,2627.8,2627.2,3.80631]
[1727244585330,8.36817,2627.8,2627.2,3.80631]
[1727244585731,4.56259,2627.8,2627.2,3.80631]
[1727244586055,4.56259,2627.8,2627.2,0.842967]
[1727244586558,3.8057,2627.7,2627.2,0.842967]
[1727244586932,3.8057,2627.7,2627.2,4.649247]
[1727244587297,0.7571,2627.8,2627.4,3.80603]
[1727244588129,0.7571,2627.8,2627.3,3.80608]
[1727244588328,5.75112093,2628.2,2627.7,3.80558]
[1727244588579,4.56206,2628.2,2627.7,3.80558]
[1727244589079,4.56206,2628.2,2627.8,0.8169]
[1727244589641,0.7571,2628.2,2627.8,0.8169]
[1727244590261,4.56198,2628.2,2627.8,0.8169]
[1727244590572,0.7571,2628.2,2627.8,0.8169]
[1727244591466,0.7571,2628.2,2627.3,2.82105332]
[1727244591467,3.80526,2628.0,2627.3,3.80612]
[1727244591888,3.80519,2628.0,2627.5,3.80589]
[1727244592982,4.61902,2628.1,2627.5,3.80589]
[1727244593162,8.42418,2628.1,2627.5,3.80589]
[1727244593487,8.42418,2628.1,2627.5,5.394791]
[1727244593707,3.8052,2628.0,2627.5,5.394791]
[1727244593988,3.80532,2627.9,2627.5,1.588901]
[1727244594203,3.80532,2627.9,2627.3,4.6338]
[1727244594881,7.61077,2627.9,2627.3,4.6338]
[1727244595356,3.80551,2627.8,2627.3,4.6338]
[1727244596591,3.80561,2627.7,2627.3,0.8277]
[1727244596797,4.61951,2627.7,2627.3,0.8277]
[1727244597096,8.42521,2627.7,2627.3,0.8277]
[1727244597387,3.80576,2627.6,2627.1,7.63408]
[1727244597594,3.80576,2627.6,2627.1,9.434392]
[1727244597811,8.42521,2627.7,2627.1,9.434392]
[1727244597960,3.80583,2627.6,2627.1,5.628012]
[1727244599254,3.80583,2627.6,2627.1,9.434462]
[1727244599867,4.61951,2627.7,2627.1,9.434462]
[1727244600067,3.80576,2627.6,2627.1,9.434462]
[1727244602001,3.80576,2627.6,2627.1,5.628012]
[1727244602205,3.80561,2627.7,2627.2,3.80632]
[1727244602794,7.61131,2627.7,2627.2,3.80632]
[1727244603112,0.8139,2627.9,2627.3,0.8277]
[1727244603113,4.61936,2627.9,2627.3,0.8277]
[1727244603270,4.61936,2627.9,2627.3,4.6338]
[1727244603271,3.80546,2627.9,2627.3,4.6338]
[1727244603620,3.80546,2627.9,2627.3,6.27604079]
[1727244603781,3.80546,2627.9,2627.3,6.19992582]
[1727244604160,7.61088,2627.9,2627.3,6.19992582]
[1727244604565,3.80548,2627.8,2627.3,2.39382582]
[1727244604816,3.80548,2627.8,2627.3,0.8277]
[1727244604961,8.39666,2627.7,2627.3,0.8277]
[1727244605154,3.80576,2627.6,2627.3,0.8277]
[1727244605498,4.59094,2627.7,2627.3,0.8277]
[1727244605717,4.59094,2627.7,2626.8,0.65234385]
[1727244605718,3.80627,2627.3,2626.8,0.65234385]
[1727244605855,2.89658429,2627.6,2626.8,0.65234385]
[1727244605856,3.88145097,2627.5,2626.9,0.8008]
[1727244606077,7.61194,2627.5,2626.9,0.8008]
[1727244606277,3.80592,2627.5,2626.9,0.8008]
[1727244606687,3.80606,2627.4,2626.9,4.60756]
[1727244607105,3.80606,2627.4,2626.9,0.8008]
[1727244607404,3.80606,2627.4,2626.9,4.60754]
[1727244607610,3.80592,2627.5,2626.9,4.60754]
[1727244607906,3.80577,2627.6,2627.0,3.80654]
[1727244608221,4.59096,2627.7,2627.1,0.8008]
[1727244608512,3.80579,2627.6,2627.1,4.60725]
[1727244608914,4.59069,2627.9,2627.2,3.80624]
[1727244609081,4.59069,2627.9,2627.3,0.8008]
[1727244609082,3.80552,2627.8,2627.3,0.8008]
[1727244609400,3.80548,2627.8,2627.3,4.60693]
[1727244611007,3.80548,2627.8,2627.4,0.8008]
[1727244611387,3.80539,2627.9,2627.4,0.8008]
[1727244611593,3.80561,2627.7,2627.4,0.8008]
[1727244611821,3.80539,2627.9,2627.4,0.8008]
[1727244612226,7.61083,2627.9,2627.4,0.8008]
[1727244613486,3.80539,2627.9,2627.4,4.60682]
[1727244614226,3.80539,2627.9,2627.4,5.448139]
[1727244614428,3.80539,2627.9,2627.4,1.642099]
[1727244614634,4.5904,2628.1,2627.5,3.80581]
[1727244614828,3.80487,2628.3,2627.6,0.9253929]
[1727244615018,3.80521,2628.0,2627.7,0.8008]
[1727244615186,3.80533,2627.9,2627.4,3.8008]
[1727244615390,3.80546,2627.8,2627.4,3.8008]
[1727244615627,3.80533,2627.9,2627.4,0.8008]
[1727244615788,3.80555,2627.8,2627.4,0.8008]
[1727244617927,0.07553097,2628.0,2627.1,11.19635]
[1727244617928,3.80578,2627.6,2627.1,11.19635]
[1727244620134,3.80578,2627.6,2627.1,4.60718]
[1727244620341,3.80578,2627.6,2627.1,8.41357]
[1727244621028,3.80578,2627.6,2627.1,4.60718]
[1727244621247,3.80578,2627.6,2627.1,5.5138097]
[1727244621405,3.80578,2627.6,2627.1,9.3201897]
[1727244621847,3.80578,2627.6,2627.1,5.5138097]
[1727244622045,3.80578,2627.6,2627.1,9.3201997]
[1727244622214,3.80563,2627.7,2627.2,3.80623]
[1727244622415,3.80563,2627.7,2627.2,4.73823397]
[1727244623442,3.80563,2627.7,2627.2,0.93200397]
[1727244623733,7.61134,2627.7,2627.2,0.93200397]
[1727244624073,3.80575,2627.6,2627.1,4.60718]
[1727244624212,4.61092,2627.5,2627.1,0.8008]
[1727244625248,3.80592,2627.5,2627.1,4.60727]
[1727244625913,4.61063,2627.7,2627.1,4.60727]
[1727244626122,3.80563,2627.7,2627.2,0.65330923]
[1727244626322,7.61134,2627.7,2627.1,4.60727]
[1727244626523,3.80563,2627.7,2627.2,0.65360648]
[1727244626723,7.61133,2627.7,2627.1,4.6072]
[1727244626957,3.80576,2627.6,2627.2,0.6536141]
[1727244627125,3.80576,2627.6,2627.1,4.6072]
[1727244627327,3.80576,2627.6,2627.2,0.65392329]
[1727244627553,3.80576,2627.6,2627.1,4.6072]
[1727244627751,3.80576,2627.6,2627.2,0.65392942]
[1727244628137,3.80576,2627.6,2627.1,4.6072]
[1727244628461,3.80576,2627.6,2627.2,0.65392566]
[1727244628670,3.80576,2627.6,2627.3,0.65392566]
[1727244628833,3.80576,2627.6,2627.1,4.6072]
[1727244629035,3.80576,2627.6,2627.2,0.65430978]
[1727244629231,3.80576,2627.6,2627.3,0.65430978]
[1727244629433,3.80576,2627.6,2627.1,4.6072]
[1727244629679,3.80576,2627.6,2627.2,0.65435624]
[1727244629865,3.80576,2627.6,2627.3,0.65435624]
[1727244630042,3.80576,2627.6,2627.1,4.6072]
[1727244630234,3.80576,2627.6,2627.2,0.6543628]
[1727244630437,4.99482093,2627.6,2627.3,0.6543628]
[1727244630664,3.80576,2627.6,2627.1,4.6072]
[1727244630975,3.80576,2627.6,2627.2,0.6543467]
[1727244631185,3.80605,2627.4,2626.9,3.80668]
[1727244631379,3.80633,2627.2,2626.8,0.7676]
[1727244631733,3.80671,2627.0,2626.6,0.805453]
[1727244632073,3.80671,2627.0,2626.6,0.037853]
[1727244632570,3.80699,2626.8,2626.6,0.037853]
[1727244634276,3.80677,2626.9,2626.6,0.037853]
[1727244636079,4.61148,2627.1,2626.6,3.844973]
[1727244636242,4.99534093,2627.3,2626.8,3.80689]
[1727244636437,3.80628,2627.3,2626.8,3.80689]
[1727244636637,1.94296093,2627.4,2626.9,3.80667]
[1727244636942,1.94296093,2627.4,2627.0,3.8066]
[1727244636943,0.7539,2627.4,2627.0,3.8066]
[1727244637172,0.7539,2627.4,2627.0,4.65284918]
[1727244637683,1.18906093,2627.6,2627.1,0.762]
[1727244637990,4.55958,2627.7,2627.1,4.56839]
[1727244637991,5.74864093,2627.7,2627.1,4.56839]
[1727244638166,5.74864093,2627.7,2627.1,0.762]
[1727244638341,9.55436093,2627.7,2627.2,3.80633]
[1727244638679,3.80577,2627.6,2627.1,5.10992892]
[1727244639390,3.80577,2627.6,2627.1,5.10001867]
[1727244639942,5.74864093,2627.7,2627.1,5.10001867]
[1727244639943,4.55958,2627.7,2627.1,5.10001867]
[1727244640551,3.80578,2627.6,2627.1,5.10001867]
[1727244641381,3.80578,2627.6,2627.1,4.55853975]
[1727244644498,3.80578,2627.6,2627.1,0.75208975]
[1727244645897,3.80591,2627.5,2627.1,0.75208975]
[1727244647064,3.80591,2627.5,2627.2,0.40851072]
[1727244647264,3.80591,2627.5,2627.3,0.40851072]
[1727244647574,3.80591,2627.5,2627.1,0.75208975]
[1727244647773,3.80591,2627.5,2627.2,0.40851345]
[1727244647998,3.80591,2627.5,2627.3,0.40851345]
[1727244648502,3.80591,2627.5,2627.1,0.75208975]
[1727244648856,3.80591,2627.5,2627.2,0.40852065]
[1727244649054,3.80591,2627.5,2627.3,0.40851443]
[1727244649280,3.80591,2627.5,2627.1,0.75208975]
[1727244649479,3.80591,2627.5,2627.2,0.40852514]
[1727244649688,3.80591,2627.5,2627.3,0.40852514]
[1727244649856,3.80591,2627.5,2627.1,0.75208975]
[1727244650076,3.80591,2627.5,2627.2,0.40852037]
[1727244650278,3.80591,2627.5,2627.3,0.40852037]
[1727244650470,3.80591,2627.5,2627.1,0.75208975]
[1727244650671,3.80591,2627.5,2627.2,0.40853903]
[1727244650888,3.80591,2627.5,2627.3,0.40853903]
[1727244651207,3.80591,2627.5,2627.1,0.75208975]
[1727244651411,3.80591,2627.5,2627.2,0.40854881]
[1727244651769,3.80591,2627.5,2627.3,0.40854881]
[1727244651970,3.80591,2627.5,2627.1,0.75208975]
[1727244652471,7.61188,2627.5,2627.1,0.75208975]
[1727244652907,7.61188,2627.5,2627.3,0.40855047]
[1727244653209,4.76139409,2627.5,2627.1,0.75208975]
[1727244653372,3.80591,2627.5,2627.1,0.75208975]
[1727244653779,3.80605,2627.4,2627.1,0.75208975]
[1727244654869,0.8256,2627.1,2626.7,0.7945701]
[1727244655070,0.8256,2627.1,2626.7,3.0]
[1727244655295,0.8256,2627.1,2626.7,7.62947]
[1727244655712,0.8256,2627.1,2626.7,3.8225]
[1727244656098,4.63209,2627.1,2626.7,3.8225]
[1727244656318,3.80669,2627.0,2626.6,7.427853]
[1727244656473,3.80705,2626.7,2626.6,0.037853]
[1727244657110,4.63265,2626.7,2626.6,0.037853]
[1727244657420,4.63238,2626.9,2626.6,0.037853]
[1727244657722,3.80705,2626.7,2626.6,0.037853]
[1727244661008,3.80692,2626.8,2626.6,0.037853]
[1727244661225,3.80705,2626.7,2626.6,0.037853]
[1727244664036,3.80692,2626.8,2626.6,0.037853]
[1727244664228,8.12833566,2626.8,2626.6,0.037853]
[1727244664402,3.80705,2626.7,2626.6,0.037853]
[1727244667294,3.88258097,2626.7,2626.6,0.037853]
[1727244668936,4.56465,2626.7,2626.6,0.037853]
[1727244673713,1.94666093,2627.0,2626.6,0.037853]
[1727244673952,4.56384,2627.3,2626.8,3.8069]
[1727244674159,3.80624,2627.3,2626.9,0.7663]
[1727244674345,3.80634,2627.2,2626.9,0.7663]
[1727244674649,3.80624,2627.3,2626.9,0.7663]
[1727244674816,3.80634,2627.2,2626.9,0.7663]
[1727244675016,3.80633,2627.2,2626.9,0.7663]
[1727244675468,3.80624,2627.3,2626.9,0.7663]
[1727244675770,9.55862093,2627.5,2626.9,4.57303]
[1727244675914,4.56358,2627.5,2626.9,0.7663]
[1727244676110,3.80625,2627.3,2626.9,0.7663]
[1727244676542,3.88178097,2627.3,2626.9,0.7663]
[1727244677479,3.80625,2627.3,2626.9,0.7663]
[1727244680916,7.61256,2627.3,2626.9,0.7663]
[1727244681346,3.80625,2627.3,2626.9,0.7663]
[1727244681745,3.80634,2627.2,2626.9,0.7663]
[1727244683933,4.91334003,2627.3,2626.9,0.7663]
[1727244685353,5.88484409,2627.5,2626.9,0.7663]
[1727244685541,9.69083409,2627.5,2626.9,4.57298]
[1727244686038,3.80608,2627.4,2626.9,4.57298]
[1727244686238,3.80608,2627.4,2626.9,0.7663]
[1727244687041,9.69087409,2627.5,2626.9,4.57299]
[1727244687245,8.64906093,2627.6,2627.1,0.7654]
[1727244687493,5.39118665,2627.7,2627.2,3.80633]
[1727244687494,4.99476093,2627.7,2627.2,3.80633]
[1727244687775,3.8057,2627.7,2627.2,3.80633]
[1727244687974,4.53033051,2627.7,2627.2,3.80625]
[1727244688186,4.53033051,2627.7,2627.2,7.6125]
[1727244688349,5.71939144,2627.7,2627.3,0.7654]
[1727244688555,4.53033051,2627.7,2627.3,0.7654]
[1727244689467,1.18906093,2627.8,2627.3,0.7654]
[1727244689664,4.99442093,2627.9,2627.3,0.7654]
[1727244689988,3.80551,2627.8,2627.3,4.5715]
[1727244690657,4.99438093,2627.9,2627.4,3.80597]
[1727244690983,4.99425093,2628.0,2627.5,3.80587]
[1727244691151,5.49567108,2628.0,2627.6,0.7654]
[1727244692060,3.80505,2628.1,2627.6,4.57108]
[1727244694161,3.80519,2628.0,2627.6,0.7654]
[1727244694362,4.642246,2628.0,2627.6,0.7654]
[1727244695388,3.80542,2627.9,2627.6,0.7654]
[1727244696084,4.642246,2628.0,2627.6,0.7654]
[1727244696309,8.447506,2628.0,2627.6,0.7654]
[1727244697177,4.642246,2628.0,2627.6,0.7654]
[1727244697386,8.447516,2628.0,2627.6,0.7654]
[1727244698415,4.642246,2628.0,2627.6,0.7654]
[1727244698912,8.447496,2628.0,2627.6,0.7654]
[1727244699212,4.642246,2628.0,2627.6,0.7654]
[1727244699416,3.80532,2627.9,2627.6,0.7654]
[1727244699712,4.642246,2628.0,2627.6,0.7654]
[1727244701432,8.447526,2628.0,2627.6,0.7654]
[1727244701635,0.8447526,2627.9,2627.6,0.7654]
[1727244702356,3.80519,2628.0,2627.6,0.7654]
[1727244703660,3.80519,2628.0,2627.6,4.57114]
[1727244703918,3.80497,2628.2,2627.6,3.80574]
[1727244704175,3.8046,2628.4,2628.0,0.7867]
[1727244704373,4.76594709,2628.4,2628.0,0.7867]
[1727244704578,3.8046,2628.4,2628.0,0.7867]
[1727244707625,3.80474,2628.3,2628.0,0.7867]
[1727244709433,3.8046,2628.4,2628.0,0.7867]
[1727244709884,3.80525,2628.0,2627.7,0.7968]
[1727244710379,7.61052,2628.0,2627.7,0.7968]
[1727244710541,7.61051,2628.0,2627.7,0.7968]
[1727244710884,3.80546,2627.8,2627.7,0.7968]
[1727244711086,0.07553097,2627.9,2627.3,0.7968]
[1727244711393,3.80533,2627.9,2627.4,3.80603]
[1727244712455,4.46817567,2628.0,2627.4,3.80603]
[1727244712786,4.46817567,2628.0,2627.4,3.80596]
[1727244712988,4.46817567,2628.0,2627.4,7.61192]
[1727244713195,4.46817567,2628.0,2627.5,0.7968]
[1727244713391,4.46817567,2628.0,2627.5,4.60269]
[1727244714201,4.46817567,2628.0,2627.5,0.7968]
[1727244718086,8.27346567,2628.0,2627.5,0.7968]
[1727244718405,4.46817567,2628.0,2627.5,0.7968]
[1727244718968,3.80547,2627.8,2627.5,0.7968]
[1727244722499,3.80569,2627.7,2627.5,0.7968]
[1727244722707,3.80575,2627.6,2627.3,0.7968]
[1727244723174,3.80597,2627.5,2627.3,0.7968]
[1727244723503,3.88128097,2627.6,2627.3,0.7968]
[1727244724186,3.80575,2627.6,2627.3,0.7968]
[1727244727724,3.88108097,2627.8,2627.3,0.7968]
[1727244727725,3.80561,2627.7,2627.3,0.7968]
[1727244729204,4.82009226,2627.7,2627.3,0.7968]
[1727244729525,4.82009226,2627.7,2626.7,14.19703]
[1727244729526,3.80679,2626.9,2626.7,8.1888]
[1727244729737,0.07553097,2627.1,2626.6,0.037853]